bitfinex-derivatives/quotes_ETHF0:USTF0_20240822
["timestamp","ask_amount","ask_price","bid_price","bid_amount"]
[1724306118757,0.00455408,2619.6,2619.5,8.82586974]
[1724306119260,0.00455408,2619.6,2619.5,13.34864461]
[1724306119562,0.00455408,2619.6,2619.5,13.82584918]
[1724306120767,0.00455408,2619.6,2619.5,8.82584918]
[1724306121062,0.00455408,2619.6,2619.5,13.82584918]
[1724306121259,0.00455408,2619.6,2619.5,14.58935225]
[1724306121857,4.08e-06,2619.6,2619.5,16.49735225]
[1724306122056,8.91e-06,2619.8,2619.7,2.28943]
[1724306122356,2.4977942,2620.3,2620.2,0.38149]
[1724306122561,0.3738,2620.4,2620.3,0.38148]
[1724306122562,3.2508942,2620.4,2620.3,0.38148]
[1724306123165,3.25550069,2620.4,2620.3,0.38148]
[1724306123366,0.75770649,2620.4,2620.3,0.38148]
[1724306126459,0.75770649,2620.4,2620.2,0.38148]
[1724306126460,4.57370649,2620.4,2620.2,0.38148]
[1724306126654,0.3815,2620.2,2620.1,0.38151]
[1724306126855,0.38151,2620.1,2620.0,1.48151]
[1724306127058,0.75962,2620.1,2619.9,1.48153]
[1724306127263,0.7345,2620.0,2619.9,1.48153]
[1724306129261,0.00460649,2620.4,2620.3,0.38148]
[1724306129569,0.38070649,2620.4,2620.3,0.38148]
[1724306129766,2.87850069,2620.4,2620.3,0.38148]
[1724306130566,3.61970069,2620.4,2620.3,0.38148]
[1724306133271,1.12190649,2620.4,2620.3,0.38148]
[1724306134464,1.12190649,2620.4,2620.3,1.48148]
[1724306137273,0.38148,2620.3,2620.2,0.38149]
[1724306137571,1.48148,2620.3,2620.2,0.38149]
[1724306137972,1.50337649,2620.4,2620.3,0.38148]
[1724306138165,2.60337649,2620.4,2620.3,0.38148]
[1724306139379,2.22190649,2620.4,2620.3,0.38148]
[1724306139571,2.60337649,2620.4,2620.3,0.38148]
[1724306140080,0.3815,2620.2,2620.1,0.38151]
[1724306140376,1.48149,2620.3,2620.2,0.38149]
[1724306140876,5.29829,2620.3,2620.2,0.38149]
[1724306141475,1.48149,2620.3,2620.2,0.38149]
[1724306144580,1.12190649,2620.4,2620.3,0.38148]
[1724306144780,4.93790649,2620.4,2620.3,0.38148]
[1724306145174,6.92635962,2620.4,2620.3,0.38148]
[1724306145475,3.11035962,2620.4,2620.3,0.38148]
[1724306146886,3.49182962,2620.4,2620.3,0.38148]
[1724306147181,2.60337649,2620.4,2620.3,0.38148]
[1724306148179,5.10117069,2620.4,2620.3,0.38148]
[1724306148774,8.91717069,2620.4,2620.3,0.38148]
[1724306149070,2.60337649,2620.4,2620.3,0.38148]
[1724306149278,5.10117069,2620.4,2620.3,0.38148]
[1724306149777,3.61970069,2620.4,2620.3,0.38148]
[1724306150080,1.12190649,2620.4,2620.3,0.38148]
[1724306150376,3.61970069,2620.4,2620.3,0.38148]
[1724306151171,4.00117069,2620.4,2620.3,0.38148]
[1724306151783,1.50337649,2620.4,2620.3,0.38148]
[1724306154177,4.50034421,2620.4,2620.3,0.38148]
[1724306158290,1.50337649,2620.4,2620.3,0.38148]
[1724306159383,4.99870607,2620.4,2620.3,0.38148]
[1724306159881,4.49730425,2620.4,2620.3,0.38148]
[1724306160480,1.50337649,2620.4,2620.3,0.38148]
[1724306161286,4.49840014,2620.4,2620.3,0.38148]
[1724306161478,1.50337649,2620.4,2620.3,0.38148]
[1724306161884,0.74657649,2620.4,2620.3,0.38148]
[1724306162193,3.00059775,2620.4,2620.3,1.48148]
[1724306162391,3.00059775,2620.4,2620.3,2.43519]
[1724306162586,0.00460649,2620.4,2620.3,2.43519]
[1724306163294,0.00460649,2620.4,2620.3,1.48148]
[1724306163479,3.00059775,2620.4,2620.3,1.48148]
[1724306164886,3.00137766,2620.4,2620.3,1.48148]
[1724306165294,0.00460649,2620.4,2620.3,1.48148]
[1724306165491,0.00460649,2620.4,2620.3,1.95863144]
[1724306166290,0.38607649,2620.4,2620.3,0.47715144]
[1724306166599,0.38148,2620.3,2620.2,0.74988]
[1724306166896,4.83051958,2620.3,2620.2,0.47718026]
[1724306167099,0.38151,2620.1,2620.0,1.48152]
[1724306167392,3.37896726,2620.1,2620.0,2.72221247]
[1724306168191,2.99745726,2620.1,2620.0,2.72221247]
[1724306168793,2.99745726,2620.1,2620.0,1.48152]
[1724306168997,2.99745726,2620.1,2620.0,3.67598936]
[1724306169299,2.99745726,2620.2,2620.1,0.38151]
[1724306169481,2.99745726,2620.2,2620.1,5.00891936]
[1724306169685,2.99745726,2620.2,2620.1,8.82571936]
[1724306171996,2.99745726,2620.2,2620.1,7.58507]
[1724306172397,2.99745726,2620.2,2620.1,8.82563089]
[1724306172794,2.99745726,2620.2,2620.1,5.00883089]
[1724306173099,2.99745726,2620.2,2620.1,8.82563089]
[1724306174595,2.99745726,2620.2,2620.1,5.00883089]
[1724306174903,2.99745726,2620.2,2620.1,8.82563089]
[1724306175105,0.36730649,2620.4,2620.2,1.33523]
[1724306175106,2.99745726,2620.3,2620.2,1.33523]
[1724306175299,2.99745726,2620.3,2620.2,2.43523]
[1724306175604,2.99745726,2620.3,2620.2,3.27306459]
[1724306176702,3.00206375,2620.4,2620.3,0.38148]
[1724306177002,0.00460649,2620.4,2620.3,0.85861459]
[1724306177994,3.00203132,2620.4,2620.3,0.85861459]
[1724306178194,0.00460649,2620.4,2620.3,0.85861459]
[1724306178600,0.36660649,2620.4,2620.3,0.85861459]
[1724306178800,0.36660649,2620.4,2620.3,0.38148]
[1724306178999,0.36660649,2620.4,2620.3,0.85861536]
[1724306179202,0.38148,2620.3,2620.2,1.48148]
[1724306179397,4.14942641,2620.3,2620.2,1.95863754]
[1724306179607,1.15198,2620.3,2620.2,1.95863754]
[1724306179807,2.10569,2620.3,2620.2,0.47715754]
[1724306180406,5.60272347,2620.3,2620.2,0.47715754]
[1724306180702,5.60272347,2620.3,2620.1,1.48151]
[1724306180703,0.38149,2620.2,2620.1,1.48151]
[1724306180894,3.3787704,2620.2,2620.1,1.95869096]
[1724306182206,3.3787704,2620.2,2620.1,1.95869357]
[1724306182207,0.38149,2620.2,2620.1,1.95869357]
[1724306182917,4.64902347,2620.3,2620.2,0.38149]
[1724306184317,0.3815,2620.2,2620.0,1.1]
[1724306184524,0.38152,2620.0,2619.9,1.48153]
[1724306184717,3.87856347,2620.0,2619.9,0.38153]
[1724306185022,7.31383347,2620.0,2619.9,0.38153]
[1724306185729,7.31383347,2620.0,2619.9,1.48153]
[1724306188419,3.8168,2620.0,2619.9,1.48153]
[1724306189520,0.38152,2620.0,2619.9,1.48153]
[1724306189721,7.69535347,2620.0,2619.9,0.38153]
[1724306189917,4.19832,2620.0,2619.9,0.38153]
[1724306190120,7.69053992,2620.0,2619.9,0.38153]
[1724306190316,3.8168,2620.0,2619.9,0.38153]
[1724306190526,6.80954814,2620.0,2619.9,0.38153]
[1724306191829,3.8168,2620.0,2619.9,1.48153]
[1724306192020,6.80954814,2620.0,2619.9,1.48153]
[1724306192324,0.76112,2620.1,2620.0,0.38152]
[1724306192325,3.75386814,2620.1,2620.0,0.38152]
[1724306192525,0.76112,2620.1,2620.0,0.38152]
[1724306192720,3.75303654,2620.1,2620.0,0.38152]
[1724306193127,4.57792,2620.1,2620.0,0.38152]
[1724306193319,7.5697122,2620.1,2620.0,0.38152]
[1724306195324,3.7529122,2620.1,2620.0,0.38152]
[1724306196722,0.38156,2619.8,2619.7,0.38155]
[1724306196926,4.47265966,2619.8,2619.7,0.38155]
[1724306197125,8.54606992,2619.9,2619.8,0.38155]
[1724306197529,5.05385,2619.9,2619.8,0.38155]
[1724306198622,6.94501338,2619.9,2619.8,0.38155]
[1724306198821,6.56346338,2619.9,2619.8,1.84885]
[1724306199027,6.19896338,2619.9,2619.8,1.84885]
[1724306199222,3.2078,2619.9,2619.8,1.84885]
[1724306199728,3.2078,2619.9,2619.8,2.24155]
[1724306200631,3.2078,2619.9,2619.8,1.84885]
[1724306202035,0.38153,2620.0,2619.9,0.38154]
[1724306202427,4.95941992,2620.2,2620.1,0.38151]
[1724306202428,3.73986338,2620.2,2620.1,0.38151]
[1724306202626,3.90986338,2620.2,2620.1,1.48151]
[1724306204536,3.90986338,2620.2,2620.0,1.48152]
[1724306204537,0.38151,2620.1,2620.0,1.48152]
[1724306205240,3.37400469,2620.1,2620.0,0.38152]
[1724306205735,0.38151,2620.1,2620.0,0.38152]
[1724306206535,3.37399381,2620.1,2620.0,0.38152]
[1724306206731,0.38151,2620.1,2620.0,0.38152]
[1724306207335,4.19831,2620.1,2620.0,0.38152]
[1724306207535,0.38151,2620.1,2620.0,0.38152]
[1724306210247,3.87372992,2620.1,2620.0,0.38152]
[1724306210443,0.38152,2620.0,2619.9,1.1]
[1724306210650,3.37421432,2620.0,2619.9,1.48154]
[1724306212251,0.38152,2620.0,2619.9,1.48154]
[1724306215946,0.75092,2620.0,2619.9,1.48154]
[1724306216146,3.74361432,2620.0,2619.9,1.48154]
[1724306217052,3.37421432,2620.0,2619.9,1.48154]
[1724306217251,0.38152,2620.0,2619.9,1.48154]
[1724306217839,3.35699432,2620.1,2620.0,0.38152]
[1724306218051,2.99269432,2620.1,2620.0,0.76532]
[1724306218251,2.99269432,2620.1,2620.0,1.86532]
[1724306220150,3.37420432,2620.1,2620.0,1.86532]
[1724306220456,3.37420432,2620.1,2620.0,1.48152]
[1724306220854,3.37420432,2620.1,2619.9,1.48153]
[1724306220855,0.38152,2620.0,2619.9,1.48153]
[1724306221159,3.37489863,2620.0,2619.9,1.48153]
[1724306221457,3.73419863,2620.0,2619.9,1.48153]
[1724306223451,3.35267863,2620.0,2619.9,1.48153]
[1724306225269,3.73419863,2620.0,2619.9,1.48153]
[1724306225471,0.74082,2620.0,2619.9,1.48153]
[1724306225765,3.3546381,2620.0,2619.9,1.48153]
[1724306226066,3.35464617,2620.0,2619.9,1.48153]
[1724306227258,3.85151992,2620.0,2619.9,1.48153]
[1724306227862,3.49221992,2620.0,2619.9,2.43538]
[1724306228067,3.49221992,2620.0,2619.9,2.91259924]
[1724306228571,3.49221992,2620.0,2619.9,1.48153]
[1724306228868,3.87373992,2620.0,2619.9,0.38153]
[1724306229070,0.38154,2619.9,2619.8,0.74884]
[1724306229375,4.57754662,2619.9,2619.8,0.8587879]
[1724306229770,4.57754662,2619.9,2619.8,0.38154]
[1724306229979,4.57754662,2619.9,2619.8,0.85879938]
[1724306230269,5.53139662,2619.9,2619.8,0.47725938]
[1724306230571,0.38157,2619.7,2619.6,0.76277]
[1724306230772,0.38157,2619.7,2619.6,1.24005525]
[1724306231074,3.8770651,2619.7,2619.6,1.24005525]
[1724306231465,0.38157,2619.7,2619.6,1.24005525]
[1724306232378,0.38157,2619.7,2619.6,1.24005505]
[1724306235181,4.2565551,2619.8,2619.7,0.38157]
[1724306235369,7.57287455,2619.8,2619.7,0.38157]
[1724306236875,2.99501455,2619.8,2619.7,0.85882215]
[1724306237475,2.99501455,2619.8,2619.7,1.81275215]
[1724306238177,7.19336455,2619.8,2619.7,0.38157]
[1724306238377,3.37656455,2619.8,2619.7,0.38157]
[1724306238574,1.10695,2619.8,2619.7,0.38157]
[1724306240275,4.10038508,2619.8,2619.7,0.38157]
[1724306240474,1.10695,2619.8,2619.7,0.38157]
[1724306240778,4.10047369,2619.8,2619.7,0.38157]
[1724306240972,4.10047369,2619.8,2619.7,0.85883348]
[1724306241381,2.99352369,2619.8,2619.7,0.85883348]
[1724306241881,2.99352369,2619.8,2619.7,1.21383348]
[1724306243183,3.8770451,2619.9,2619.8,0.38155]
[1724306243384,7.6938451,2619.9,2619.8,0.38155]
[1724306243883,3.4954951,2619.9,2619.8,1.48155]
[1724306244073,3.4954951,2620.0,2619.9,0.38154]
[1724306244273,3.4954951,2620.0,2619.9,1.48154]
[1724306244274,3.6654951,2620.0,2619.9,1.48154]
[1724306244981,3.4954951,2620.0,2619.9,1.48154]
[1724306246080,3.4954951,2620.0,2619.9,2.43539]
[1724306246272,3.4954951,2620.1,2620.0,0.38152]
[1724306246472,3.4954951,2620.1,2620.0,1.84512]
[1724306248077,7.0847851,2620.2,2620.1,0.38151]
[1724306248278,6.7032951,2620.2,2620.1,0.74791]
[1724306248579,3.4954951,2620.3,2620.2,0.38149]
[1724306248784,3.88157159,2620.4,2620.3,0.38148]
[1724306249184,4.63947159,2620.4,2620.3,0.38148]
[1724306249385,4.63528245,2620.4,2620.3,0.38148]
[1724306249586,0.38148,2620.3,2620.2,0.38148]
[1724306249781,3.86314324,2620.3,2620.2,0.38148]
[1724306249985,0.3716,2620.3,2620.2,0.38148]
[1724306250178,3.86314324,2620.3,2620.2,0.38148]
[1724306250378,0.3716,2620.3,2620.2,0.38148]
[1724306251484,3.36428778,2620.3,2620.2,0.38148]
[1724306251884,0.3716,2620.3,2620.2,0.38148]
[1724306252085,0.75308,2620.3,2620.2,0.38148]
[1724306252693,3.74570932,2620.3,2620.2,0.38148]
[1724306253087,0.38148,2620.3,2620.2,0.38148]
[1724306253392,3.37388531,2620.3,2620.2,0.38148]
[1724306253786,4.63552973,2620.4,2620.3,0.38148]
[1724306254498,1.14398649,2620.4,2620.3,0.38148]
[1724306255685,1.14398649,2620.4,2620.3,1.48148]
[1724306255686,0.38608649,2620.4,2620.3,1.48148]
[1724306255888,0.00460649,2620.4,2620.3,1.48148]
[1724306257195,2.99652197,2620.4,2620.3,1.48148]
[1724306257704,3.49614973,2620.4,2620.3,1.48148]
[1724306261399,0.38607649,2620.4,2620.3,1.48148]
[1724306261700,3.87761973,2620.4,2620.3,1.48148]
[1724306261899,4.25821973,2620.4,2620.3,1.48148]
[1724306264497,7.24942202,2620.4,2620.3,1.48148]
[1724306264698,3.75787878,2620.4,2620.3,1.48148]
[1724306265901,3.75787878,2620.4,2620.3,0.38148]
[1724306266497,0.38149,2620.2,2620.1,0.3815]
[1724306266703,3.37269229,2620.2,2620.1,0.3815]
[1724306267997,0.38149,2620.2,2620.1,0.3815]
[1724306268498,0.38149,2620.2,2620.1,1.4815]
[1724306268708,6.94799229,2620.3,2620.2,0.38149]
[1724306269302,10.76479229,2620.3,2620.2,0.74139]
[1724306270297,6.58049229,2620.3,2620.2,1.84139]
[1724306270495,3.58929,2620.3,2620.2,1.84139]
[1724306271002,3.2078,2620.3,2620.2,2.79513]
[1724306271202,3.2078,2620.3,2620.2,3.74887]
[1724306271601,3.2078,2620.3,2620.2,7.56567]
[1724306271798,0.00460649,2620.4,2620.3,2.2889]
[1724306271999,0.00460649,2620.4,2620.3,3.3889]
[1724306272198,0.00460649,2620.4,2620.3,7.2049]
[1724306272398,2.49608145,2620.4,2620.3,7.2049]
[1724306275807,1.99725413,2620.4,2620.3,12.2049]
[1724306276001,1.99725413,2620.4,2620.3,12.68198675]
[1724306276205,1.99725413,2620.4,2620.3,12.2049]
[1724306276408,1.99725413,2620.4,2620.3,12.68198229]
[1724306277114,0.00460649,2620.4,2620.3,12.68198229]
[1724306277319,0.00460649,2620.4,2620.3,6.25119]
[1724306277320,1.99725413,2620.4,2620.3,6.25119]
[1724306277606,1.99725413,2620.4,2620.3,11.25119]
[1724306277808,1.99725413,2620.4,2620.3,11.72828449]
[1724306278212,1.99725413,2620.4,2620.3,11.25119]
[1724306278400,1.99725413,2620.4,2620.3,11.72826999]
[1724306278910,1.99725413,2620.4,2620.3,14.93606999]
[1724306279605,1.49816199,2620.4,2620.3,14.93606999]
[1724306281507,1.49816199,2620.4,2620.3,14.45899]
[1724306281705,1.49816199,2620.4,2620.3,14.93607]
[1724306281915,1.49816199,2620.4,2620.3,14.93607001]
[1724306282804,1.49816199,2620.4,2620.3,14.93607167]
[1724306284213,1.49816199,2620.4,2620.3,14.93607136]
[1724306284513,1.49816199,2620.4,2620.3,9.93607136]
[1724306285213,1.49816199,2620.4,2620.3,9.93606723]
[1724306287607,0.00460649,2620.4,2620.3,9.93606723]
[1724306288009,0.00460649,2620.4,2620.3,9.45899]
[1724306288915,0.00460649,2620.4,2620.3,9.93608776]
[1724306289414,1.99725413,2620.4,2620.3,9.93608776]
[1724306289812,0.00460649,2620.4,2620.3,9.93608776]
[1724306290009,0.00460649,2620.4,2620.3,6.72828776]
[1724306290399,1.99725413,2620.4,2620.3,9.93608776]
[1724306291611,0.00460649,2620.4,2620.3,9.93608776]
[1724306291912,1.99725413,2620.4,2620.3,9.93608776]
[1724306292117,2.35585413,2620.4,2620.3,6.12008776]
[1724306292915,2.35585413,2620.4,2620.3,5.64299]
[1724306294214,2.35585413,2620.4,2620.3,2.91229797]
[1724306294518,2.35585413,2620.4,2620.3,2.43519]
[1724306294718,0.36320649,2620.4,2620.3,2.43519]
[1724306295023,0.36320649,2620.4,2620.3,2.91230045]
[1724306296813,1.99788019,2620.4,2620.3,3.86601045]
[1724306297812,1.99788019,2620.4,2620.3,2.91230045]
[1724306298220,1.99788019,2620.4,2620.3,3.86601045]
[1724306298410,1.99788019,2620.4,2620.3,3.3889]
[1724306298612,1.99788019,2620.4,2620.3,3.86597806]
[1724306299012,1.99788019,2620.4,2620.3,7.07377806]
[1724306301520,1.99788019,2620.4,2620.3,2.91226806]
[1724306301718,1.99788019,2620.4,2620.3,6.12006563]
[1724306301914,1.99788019,2620.4,2620.3,7.07377563]
[1724306302116,0.00460649,2620.4,2620.3,10.88977563]
[1724306302616,1.99788019,2620.4,2620.3,10.88977563]
[1724306302813,0.00460649,2620.4,2620.3,10.88977563]
[1724306303009,0.00460649,2620.4,2620.3,9.93606563]
[1724306304920,0.00460649,2620.4,2620.3,9.93607121]
[1724306305117,1.99788019,2620.4,2620.3,9.93607121]
[1724306305523,1.99788019,2620.4,2620.3,9.93607574]
[1724306305925,1.99788019,2620.4,2620.3,6.72827574]
[1724306306222,1.99788019,2620.4,2620.3,9.93607574]
[1724306307118,1.99788019,2620.4,2620.3,10.88978574]
[1724306307720,1.99788019,2620.4,2620.3,6.72827574]
[1724306307930,1.99788019,2620.4,2620.3,9.93607574]
[1724306308230,1.99788019,2620.4,2620.3,10.69939785]
[1724306309026,1.99788019,2620.4,2620.3,7.49159785]
[1724306309530,1.99788019,2620.4,2620.3,10.69939785]
[1724306310526,1.99788019,2620.4,2620.3,11.65310785]
[1724306310731,1.50062135,2620.4,2620.3,11.65310785]
[1724306310927,0.00460649,2620.4,2620.3,11.65310785]
[1724306311328,0.00460649,2620.4,2620.3,10.4127]
[1724306311529,0.00460649,2620.4,2620.3,11.65300824]
[1724306314029,1.50062135,2620.4,2620.3,11.65300824]
[1724306315034,0.00460649,2620.4,2620.3,11.65300824]
[1724306315235,1.5006775,2620.4,2620.3,11.65300824]
[1724306315536,1.50107182,2620.4,2620.3,11.65300824]
[1724306316428,0.00460649,2620.4,2620.3,11.65300824]
[1724306317025,0.00460649,2620.4,2620.3,10.69929824]
[1724306317336,1.99936783,2620.4,2620.3,10.69929824]
[1724306317931,1.99936783,2620.4,2620.3,9.45899]
[1724306318129,1.99936783,2620.4,2620.3,10.69938336]
[1724306318638,1.99936783,2620.4,2620.3,11.65309336]
[1724306321233,1.99936783,2620.4,2620.3,11.17601899]
[1724306321420,1.99936783,2620.4,2620.3,10.4127]
[1724306321625,1.99936783,2620.4,2620.3,11.65303615]
[1724306324038,1.99936783,2620.4,2620.3,8.44523615]
[1724306324240,1.99936783,2620.4,2620.3,11.65303615]
[1724306324743,1.99936783,2620.4,2620.3,11.6530221]
[1724306324933,0.00460649,2620.4,2620.3,12.65298849]
[1724306325441,0.00460649,2620.4,2620.3,9.44518849]
[1724306325639,0.00460649,2620.4,2620.3,12.65298849]
[1724306326138,0.00460649,2620.4,2620.3,11.6530221]
[1724306327941,0.00460649,2620.4,2620.3,10.4127]
[1724306328246,0.00460649,2620.4,2620.3,11.65303091]
[1724306328643,1.50145485,2620.4,2620.3,15.03746765]
[1724306328846,0.00460649,2620.4,2620.3,18.00769953]
[1724306329145,1.50145485,2620.4,2620.3,16.94603841]
[1724306329447,1.50145485,2620.4,2620.3,15.03861841]
[1724306329643,0.00460649,2620.4,2620.3,16.10024672]
[1724306329845,0.00460649,2620.4,2620.3,18.00766672]
[1724306330045,0.00460649,2620.4,2620.3,16.10024672]
[1724306330349,1.50145485,2620.4,2620.3,15.03855732]
[1724306331140,0.00460649,2620.4,2620.3,15.03855732]
[1724306332253,0.00460649,2620.4,2620.3,14.56150697]
[1724306332650,0.00460649,2620.4,2620.3,15.03855732]
[1724306332849,0.00460649,2620.4,2620.3,15.03846231]
[1724306333960,0.00460649,2620.4,2620.3,15.03843048]
[1724306335059,0.00460649,2620.4,2620.3,13.32104922]
[1724306335259,0.00460649,2620.4,2620.3,15.03830336]
[1724306335447,0.00460649,2620.4,2620.3,12.6532218]
[1724306335754,0.00460649,2620.4,2620.3,11.35351238]
[1724306335954,0.00460649,2620.4,2620.3,15.03832742]
[1724306336147,0.00460649,2620.4,2620.3,14.56131238]
[1724306336349,0.00460649,2620.4,2620.3,15.03832742]
[1724306337043,1.99476134,2620.7,2620.6,1.33504]
[1724306337256,3.49083236,2621.3,2620.6,1.33504]
[1724306337257,1.99476134,2620.8,2620.7,1.33498]
[1724306337454,3.24345168,2621.0,2620.8,0.38141]
[1724306337455,1.99476134,2620.9,2620.8,0.38141]
[1724306337652,3.24345168,2621.0,2620.9,0.38139]
[1724306337852,3.24345168,2621.0,2620.9,1.6216291]
[1724306338047,3.24823406,2621.0,2620.9,1.6216291]
[1724306338351,0.75478238,2621.0,2620.9,0.85840504]
[1724306338548,3.24866719,2621.0,2620.9,0.85840504]
[1724306338747,0.75478238,2621.0,2620.9,0.85840504]
[1724306338950,0.75478238,2621.0,2620.8,1.4814]
[1724306339152,0.75478238,2621.0,2620.9,0.38139]
[1724306339349,7.9435044,2621.0,2620.8,1.4814]
[1724306339549,4.1283044,2621.0,2620.8,1.4814]
[1724306339749,3.7469244,2621.0,2620.8,1.4814]
[1724306339950,3.7469244,2621.0,2620.9,0.38139]
[1724306340246,0.75478238,2621.0,2620.8,1.4814]
[1724306340557,3.7469244,2621.0,2620.9,0.38139]
[1724306341061,7.5621244,2621.0,2620.9,0.38139]
[1724306341649,4.56998238,2621.0,2620.9,0.38139]
[1724306342060,7.5621244,2621.0,2620.9,0.38139]
[1724306343048,4.56998238,2621.0,2620.9,0.38139]
[1724306343250,7.5621244,2621.0,2620.9,0.38139]
[1724306344955,4.56998238,2621.0,2620.9,0.85841714]
[1724306348161,7.5621244,2621.0,2620.9,0.85841714]
[1724306349042,7.9435044,2621.0,2620.9,0.85841714]
[1724306349449,7.5621244,2621.0,2620.9,0.85841714]
[1724306351452,7.5621244,2621.0,2620.9,0.38139]
[1724306351653,7.5621244,2621.0,2620.9,0.85842184]
[1724306355055,7.5621244,2621.0,2620.9,0.85842112]
[1724306358164,7.5621244,2621.0,2620.9,0.38139]
[1724306358362,7.5621244,2621.0,2620.9,0.85842005]
[1724306361460,7.5621244,2621.0,2620.9,0.38139]
[1724306361653,7.5621244,2621.0,2620.9,1.81193075]
[1724306364661,7.5621244,2621.0,2620.9,1.33489]
[1724306364956,7.5621244,2621.0,2620.9,1.81191169]
[1724306367964,7.5621244,2621.0,2620.9,2.57513749]
[1724306368357,7.5621244,2621.0,2620.9,2.57513189]
[1724306368856,7.5621244,2621.0,2620.9,1.62163189]
[1724306371387,3.7469244,2621.0,2620.9,1.62163189]
[1724306371555,3.7469244,2621.0,2620.9,1.14461553]
[1724306371763,3.7469244,2621.0,2620.9,1.62163148]
[1724306372971,2.9969244,2621.0,2620.9,1.62163148]
[1724306373172,2.9969244,2621.0,2620.9,2.00343148]
[1724306374774,0.00478238,2621.0,2620.9,2.00343148]
[1724306374957,0.00478238,2621.0,2620.9,2.95688199]
[1724306376061,2.9969244,2621.0,2620.9,2.95688199]
[1724306376259,0.00478238,2621.0,2620.9,2.95688199]
[1724306376464,2.9969244,2621.0,2620.9,2.95688199]
[1724306376661,0.00478238,2621.0,2620.9,2.95688199]
[1724306376868,2.9969244,2621.0,2620.9,2.00338199]
[1724306377072,2.9969244,2621.0,2620.9,1.62158199]
[1724306378263,2.9969244,2621.0,2620.9,0.85838692]
[1724306379370,3.3805244,2621.0,2620.9,1.62161875]
[1724306380164,3.3805244,2621.0,2620.9,0.85838692]
[1724306380365,3.3805244,2621.0,2620.9,1.62158757]
[1724306381078,3.3805244,2621.0,2620.9,0.85838692]
[1724306381277,3.3805244,2621.0,2620.9,0.38139]
[1724306381474,3.3805244,2621.0,2620.9,0.85840601]
[1724306382473,3.3805244,2621.0,2620.9,1.62163113]
[1724306384684,3.3805244,2621.0,2620.9,1.62160917]
[1724306387878,3.3805244,2621.0,2620.9,0.38139]
[1724306388068,2.9969244,2621.0,2620.9,1.62162232]
[1724306390183,2.9969244,2621.0,2620.9,6.39032232]
[1724306390586,0.00478238,2621.0,2620.9,5.43682232]
[1724306390787,2.9969244,2621.0,2620.9,1.62162232]
[1724306390981,3.3557244,2621.0,2620.9,1.62162232]
[1724306391285,3.3557244,2621.0,2620.9,1.62159927]
[1724306392591,3.7222244,2621.0,2620.9,2.72159927]
[1724306395687,3.7222244,2621.0,2620.9,1.48139]
[1724306395883,3.7222244,2621.0,2620.9,2.72161078]
[1724306397980,3.7222244,2621.0,2620.9,2.72162539]
[1724306399475,0.73008238,2621.0,2620.9,2.72162539]
[1724306400179,0.73008238,2621.0,2620.9,2.72164489]
[1724306400372,4.54528238,2621.0,2620.9,2.72164489]
[1724306400578,8.03611474,2621.0,2620.9,1.95840361]
[1724306401178,8.03611474,2621.0,2620.9,2.72164111]
[1724306401380,0.36358238,2621.0,2620.9,2.72164111]
[1724306401580,3.36342928,2621.0,2620.9,2.72164111]
[1724306401780,0.36358238,2621.0,2620.9,2.72164111]
[1724306403581,0.36358238,2621.0,2620.9,1.48139]
[1724306403789,0.36358238,2621.0,2620.9,2.72165854]
[1724306405791,3.85441474,2621.0,2620.9,2.72165854]
[1724306405989,0.36358238,2621.0,2620.9,2.72165854]
[1724306406378,0.38141,2620.8,2620.7,0.00572891]
[1724306406595,1.48141,2620.8,2620.7,0.48282329]
[1724306406793,4.916,2620.8,2620.7,0.86425329]
[1724306406982,4.916,2620.8,2620.7,0.38715891]
[1724306406983,3.816,2620.8,2620.7,0.38715891]
[1724306407292,7.69881314,2620.8,2620.7,0.38715891]
[1724306407488,7.69774087,2620.8,2620.7,0.86423564]
[1724306408181,7.69774087,2620.8,2620.7,0.38715891]
[1724306409491,8.07915087,2620.8,2620.7,0.38715891]
[1724306409986,4.58161,2620.8,2620.7,0.00572891]
[1724306410390,9.17915087,2620.8,2620.7,0.00572891]
[1724306410988,9.17915087,2620.8,2620.0,1.25749811]
[1724306410989,0.38144,2620.6,2620.0,1.25749811]
[1724306411194,0.7646,2620.5,2620.4,0.38146]
[1724306411387,0.7646,2620.5,2620.4,0.8585735]
[1724306412686,0.7646,2620.5,2620.4,1.95858318]
[1724306413083,0.7646,2620.5,2620.4,1.48146]
[1724306413985,0.38148,2620.3,2620.2,0.00572891]
[1724306414185,2.99625059,2620.3,2620.2,0.00572891]
[1724306414388,4.19828,2620.3,2620.2,0.00572891]
[1724306414587,7.56073059,2620.3,2620.2,0.00572891]
[1724306415501,4.56448,2620.3,2620.2,0.00572891]
[1724306415691,7.56073059,2620.3,2620.2,0.00572891]
[1724306416600,4.56448,2620.3,2620.2,0.00572891]
[1724306417390,5.66448,2620.3,2620.2,0.00572891]
[1724306418097,13.66073059,2620.3,2620.2,0.00572891]
[1724306418289,10.66448,2620.3,2620.2,0.00572891]
[1724306418491,0.38152,2620.1,2619.8,1.48155]
[1724306418699,2.49107524,2619.9,2619.8,0.38155]
[1724306418891,2.49107524,2619.9,2619.8,1.48155]
[1724306419085,6.30787524,2619.9,2619.8,1.48155]
[1724306419797,0.3641,2620.0,2619.9,0.38154]
[1724306419798,2.85517524,2620.0,2619.9,0.38154]
[1724306420000,2.49107524,2620.0,2619.9,0.38154]
[1724306420206,2.49107524,2620.1,2620.0,0.38153]
[1724306420501,2.49107524,2620.1,2620.0,1.48153]
[1724306420895,2.88107524,2620.2,2620.0,1.48153]
[1724306421493,1.99152301,2620.1,2620.0,1.48153]
[1724306421997,2.88107524,2620.2,2620.0,1.1]
[1724306422592,3.26257524,2620.2,2620.0,1.1]
[1724306423198,3.26257524,2620.2,2619.9,2.23603]
[1724306423505,1.99107998,2620.0,2619.9,2.23603]
[1724306424988,1.99107998,2620.1,2620.0,0.38153]
[1724306425199,1.99107998,2620.1,2620.0,1.48153]
[1724306425497,1.49300892,2620.2,2620.0,5.2799]
[1724306425695,1.49300892,2620.2,2620.0,1.4631]
[1724306425902,1.49300892,2620.2,2620.1,0.38151]
[1724306429293,3.50757998,2620.2,2620.0,0.38152]
[1724306429489,3.50757998,2620.2,2620.1,1.1]
[1724306430109,3.50757998,2620.2,2619.9,1.8545]
[1724306430110,3.12607998,2620.2,2619.9,1.8545]
[1724306430302,3.12607998,2620.2,2619.9,1.4722]
[1724306430303,1.87445998,2620.0,2619.9,1.4722]
[1724306430602,0.38153,2620.0,2619.9,1.85374]
[1724306430800,1.49280016,2620.0,2619.9,1.85374]
[1724306431002,2.37259998,2620.1,2619.9,1.85374]